Cogmind - Beta 15 @@@ ROGUE MODE // 2025.06.09 @ 15:17:15 Player: Ev Result: Destroyed by VJ-2OE(R) with Subdweller Laser Performance ------------- Evolutions (0) 0 Regions Visited (2) 400 Robots Destroyed (19) 95 Value Destroyed (265) 265 Prototype IDs (2) 40 Alien Tech Used (0) 0 Bonus (0) 0 TOTAL SCORE: 800 Bonus ------- None Cogmind --------- Core Integrity 0/250 Matter 300/300 Energy 100/100 System Corruption 3% Temperature Cool (6) Movement Flying (40) Location -10/Subcaves Parts ------- > --- POWER (1) -------- (None) > --- PROPULSION (2) --- Flight Unit > --- UTILITY (2) ------ Visual Processing Unit Signal Interpreter > --- WEAPON (2) ------- Medium Laser > --- INVENTORY (5) ---- Small Storage Unit Peak State ------------ > --- POWER ------------ Light Ion Engine > --- PROPULSION ------- Flight Unit Flight Unit > --- UTILITY ---------- Visual Processing Unit ECM Suite > --- WEAPON ----------- Light Assault Rifle Light Assault Rifle > --- INVENTORY -------- Small Storage Unit Structural Scanner Grenade Launcher [Rating: 8] Favorites ----------- Power Light Ion Engine Engine Light Ion Engine Propulsion Flight Unit Leg Aluminum Leg Flight Unit Flight Unit Utility ECM Suite Device ECM Suite Storage Small Storage Unit Processor Visual Processing Unit Weapon Light Assault Rifle Energy Gun Medium Laser Ballistic Gun Light Assault Rifle Launcher Grenade Launcher Build | -11 -10 -10 ------- Run | Yrd Mat Sub Slots Evolved . | . . . Power . | . . . Propulsion . | . . . Utility . | . . . Weapon . | . . . Parts Attached 18 | 6 12 . Power 2 | 1 1 . Engine 2 | 1 1 . Core . | . . . Reactor . | . . . Propulsion 4 | 2 2 . Treads . | . . . Leg 2 | 2 . . Wheel . | . . . Hover . | . . . Flight 2 | . 2 . Utility 5 | 1 4 . Device 2 | . 2 . Storage 1 | 1 . . Processor 2 | . 2 . Hackware . | . . . Protection . | . . . Artifact . | . . . Weapon 7 | 2 5 . Energy Gun 4 | 2 2 . Energy Cannon . | . . . Ballistic Gun 2 | . 2 . Ballistic Cannon . | . . . Launcher 1 | . 1 . Special Weapon . | . . . Impact Weapon . | . . . Slashing Weapon . | . . . Piercing Weapon . | . . . Special Melee Weapon . | . . . Unidentified Prototypes . | . . . Parts Lost 5 | . 5 . Power 1 | . 1 . Propulsion 1 | . 1 . Utility . | . . . Weapon 3 | . 3 . Highest Loss Streak 5 | . 5 . To Critical Strikes . | . . . Average Backups 1 | 1 1 1 Power . | . . . Propulsion . | . . . Utility . | . . 1 Weapon . | . . . Tool/Special . | . . . Unused Backups 1 | . 1 . Power 1 | . 1 . Propulsion . | . . . Utility . | . . . Weapon . | . . . Tool/Special . | . . . Average Slot Usage (%) 80 | . 81 57 Engine 9 | . 9 . Leg 5 | . 5 . Flight 17 | . 17 14 Device 13 | . 13 . Storage 2 | . 2 . Processor 8 | . 7 28 Energy Gun 10 | . 10 14 Ballistic Gun 11 | . 11 . Peak Build Rating 8 | 6 8 5 Average Rating 5 | 4 6 5 On Entrance 3 | . 6 5 Naked Turns . | . . . Heaviest Build 15 | 13 15 2 Greatest Support 20 | 20 20 4 Greatest Overweight (x) 1 | 1 1 . Average Overweight (x) . | . . . Largest Inventory Capacity 8 | 8 8 5 Average Capacity 5 | 7 5 5 Most Carried 5 | 4 5 1 Average Carried 1 | 1 1 1 Final Capacity 8 | 8 5 5 Final Carried 2 | 2 1 1 Class Distribution -------------------- 57% | Mutant 42% | Scavenger-Mutant Dominant Class ---------------- Mutant | -10/Materials Mutant | -10/Subcaves Resources | -11 -10 -10 ----------- Run | Yrd Mat Sub Matter Collected 522 | 210 312 . Remotely . | . . . Salvage Created 577 | . 577 . Parts 40 | . 40 . Haulers Intercepted 1 | . 1 . Recyclers Shooed 3 | . 3 . Parts Field Recycled . | . . . Retrieved Matter . | . . . Parts Self-Destructed . | . . . Prevented . | . . . Kills | -11 -10 -10 ------- Run | Yrd Mat Sub Combat Hostiles Destroyed 7 | . 7 . Guns 6 | . 6 . AOE 1 | . 1 . Classes Destroyed 8 | . 8 . Worker 3 | . 3 . Builder 2 | . 2 . Tunneler 2 | . 2 . Hauler 1 | . 1 . Recycler 2 | . 2 . Watcher 2 | . 2 . Swarmer 3 | . 3 . Grunt 4 | . 4 . Best Kill Streak 4 | . 4 . Combat Bots Only 3 | . 3 . Max Kills in Single Turn 1 | . 1 . Gunslinging . | . . . Exploded 1 | . 1 . Melee . | . . . Uniques/NPCs Destroyed . | . . . Combat | -11 -10 -10 -------- Run | Yrd Mat Sub Hostile Shots Fired 80 | . 78 2 Missed 28 | . 28 . Hits 52 | . 50 2 Projectile 52 | . 50 2 Damage Taken 646 | . 610 36 Core 254 | . 234 20 Absorbed by Shields . | . . . Core Remaining (%) 100 | 100 . . Volleys Fired 78 | . 78 . Largest 2 | . 2 . Hottest 90 | . 90 . Shots Fired 126 | . 126 . Gun 122 | . 122 . Cannon . | . . . Launcher 4 | . 4 . Special . | . . . Kinetic 77 | . 77 . Thermal 45 | . 45 . Explosive 4 | . 4 . Electromagnetic . | . . . Robot Hit Streak 12 | . 12 . Robot Miss Streak 5 | . 5 . Penetration Max . | . . . Secondary Targets 1 | . 1 . Max Gunslinging Chain 1 | . 1 . Shots Hit Robots 79 | . 79 . Core Hits 35 | . 35 . Critical Kills . | . . . Critical Parts Destroyed . | . . . Critical Strikes 4 | . 4 . Burn 4 | . 4 . Melee Attacks . | . . . Impact . | . . . Slashing . | . . . Piercing . | . . . Sneak Attacks . | . . . Combat Hostiles . | . . . Follow-up Attacks . | . . . Damage Inflicted 979 | . 979 . Guns 758 | . 758 . Cannons . | . . . Explosions 221 | . 221 . Melee . | . . . Ramming . | . . . Kinetic 404 | . 404 . Thermal 354 | . 354 . Explosive 221 | . 221 . Electromagnetic . | . . . Impact . | . . . Slashing . | . . . Piercing . | . . . Highest Corruption 3 | . 3 3 Average Corruption 2 | . 2 3 Corruption Purged . | . . . Corruption Blocked . | . . . Effects 4 | . 3 1 Message Errors 1 | . 1 . Data Loss (minor) 2 | . 1 1 Data Loss (major) 1 | . 1 . Overload Shots . | . . . Overflow Damage . | . . . Projectiles . | . . . Explosions . | . . . Melee . | . . . Knockbacks . | . . . Impact . | . . . Kinetic . | . . . Secondary . | . . . Self-Inflicted Damage . | . . . Shots . | . . . Rammed . | . . . Targets Rammed . | . . . Kicked . | . . . Crushed . | . . . Highest Temperature 150 | . 150 . Average Temperature 26 | . 26 . Received Heat Transfer 303 | . 297 6 Siege Activations . | . . . Martial Activations . | . . . Shielding Activations . | . . . Robots Disrupted . | . . . Combat Hostiles . | . . . Robots Corrupted . | . . . Combat Hostiles . | . . . Parts Fried . | . . . Impact Corruptions . | . . . Robots Melted . | . . . Combat Hostiles . | . . . Parts Melted . | . . . Heat Transferred 1309 | . 1309 . Parts Sabotaged . | . . . Parts Stolen . | . . . Parts Stripped . | . . . Power Chain Reactions . | . . . Alert | -11 -10 -10 ------- Run | Yrd Mat Sub Maximum Alert Level . | . . . Low Security (%) 100 | 100 100 . Level 1 . | . . . Level 2 . | . . . Level 3 . | . . . Level 4 . | . . . Level 5 . | . . . High Security . | . . . Max Security . | . . . Peak Influence 67 | . 67 . Initial . | . . . Average 21 | . 24 . Influence Increases 283 | . 283 . Destroy 0b10 Robot/C 140 | . 140 . Destroy 0b10 Robot/NC 60 | . 60 . Destroy Leader 36 | . 36 . Successful Hack 21 | . 21 . Destroy Structure 26 | . 26 . Influence Decreases 273 | . 263 10 Entered New Map 10 | . . 10 Time Decay 221 | . 221 . Lost Part 42 | . 42 . Squads Dispatched . | . . . Investigation . | . . . Extermination . | . . . Reinforcement . | . . . Assault . | . . . Garrison . | . . . Intercept . | . . . Searches Triggered . | . . . Construction Impeded . | . . . Haulers Reinforced . | . . . Active Scanning Responses . | . . . Cargo Convoy Interrupts . | . . . Stealth | -11 -10 -10 --------- Run | Yrd Mat Sub Distress Signals 1 | . 1 . Communications Jammed . | . . . Distress Signals . | . . . Times Spotted 17 | . 15 2 Peak Tracking Total 4 | . 4 2 Tactical Retreats 2 | . 2 . Traps | -11 -10 -10 ------- Run | Yrd Mat Sub Traps Triggered 2 | . 2 . Indirectly . | . . . Trap Hack Attempts . | . . . Triggered . | . . . Disarmed . | . . . Reprogrammed . | . . . Reused . | . . . Traps Extracted . | . . . Installed . | . . . Triggered . | . . . Machines | -11 -10 -10 ---------- Run | Yrd Mat Sub Machines Disabled . | . . . Max in Single Turn . | . . . Machines Repaired . | . . . Machines Dismantled . | . . . Machines Sabotaged . | . . . Overloaded Fab Kills . | . . . Hacking | -11 -10 -10 --------- Run | Yrd Mat Sub Machines Accessed 4 | . 4 . Terminals 4 | . 4 . Fabricators . | . . . Repair Stations . | . . . Recycling Units . | . . . Scanalyzers . | . . . Garrison Access . | . . . Total Hacks 19 | . 19 . Successful 12 | . 12 . Failed 7 | . 7 . Catastrophic 1 | . 1 . Database Lockouts . | . . . Manual 13 | . 13 . Terminals 19 | . 19 . Fabricators . | . . . Repair Stations . | . . . Recycling Units . | . . . Scanalyzers . | . . . Garrison Access . | . . . Terminal Hacks 5 | . 5 . Prototype ID Bank 1 | . 1 . Emergency Access Points 1 | . 1 . Locate Traps 1 | . 1 . Hauler Manifests 1 | . 1 . Registered Prototypes 1 | . 1 . Fabricator Hacks . | . . . Repair Station Hacks . | . . . Recycling Unit Hacks . | . . . Scanalyzer . | . . . Garrison Access Hacks . | . . . Unauthorized Hacks 7 | . 7 . Terminals 7 | . 7 . Track 2 | . 2 . Botnet 4 | . 4 . Operators 1 | . 1 . Fabricators . | . . . Repair Stations . | . . . Recycling Units . | . . . Scanalyzers . | . . . Garrison Access . | . . . Data Cores Recovered . | . . . Used . | . . . Hacking Detections 2 | . 2 . Full Trace Events . | . . . Feedback Events . | . . . Feedback Blocked . | . . . Robot Schematics Acquired . | . . . Robots Built . | . . . Authchips . | . . . Time . | . . . Total Robot Build Rating . | . . . Part Schematics Acquired . | . . . Parts Built . | . . . Authchips . | . . . Time . | . . . Total Part Build Rating . | . . . Parts Repaired . | . . . Time . | . . . Parts Recycled . | . . . Recycled Matter . | . . . Retrieved Matter . | . . . Retrieved Components . | . . . Parts Scanalyzed . | . . . Part Schematics Acquired . | . . . Parts Damaged . | . . . Bothacking | -11 -10 -10 ------------ Run | Yrd Mat Sub Used RIF Installer . | . . . Robots Hacked . | . . . Non-combat . | . . . Combat . | . . . Robot Hacks Applied . | . . . Relay Couplers Released . | . . . Fabnet Peak Effective % . | . . . Robots Rewired . | . . . Allies Hacked . | . . . Hacks Repelled . | . . . Allies | -11 -10 -10 -------- Run | Yrd Mat Sub Total Allies . | . . . Largest Group . | . . . Highest-Rated Group . | . . . Highest-Rated Ally . | . . . Total Orders . | . . . Ally Attacks . | . . . Total Damage . | . . . Kills . | . . . Allies Corrupted . | . . . Allies Melted . | . . . Intel | -11 -10 -10 ------- Run | Yrd Mat Sub Active Infowar (turns) 547 | . 528 19 Optics 340 | . 321 19 Structural 112 | . 112 . ECM 366 | . 366 . Robot Analysis Total . | . . . Derelict Logs Recovered . | . . . Drone Launches . | . . . Drone Recoveries . | . . . Exploration | -11 -10 -10 ------------- Run | Yrd Mat Sub Turns Passed 706 | 72 615 19 Spaces Moved 890 | 52 800 38 Core 9 | 9 . . Treads . | . . . Legs 107 | 43 64 . Wheels . | . . . Hover . | . . . Flight 774 | . 736 38 Fastest Speed 37 | 50 37 40 Average Speed 48 | 112 45 40 Slowest Speed 120 | 120 120 40 Overloaded Moves . | . . . Propulsion Burnouts . | . . . Robots Hopped 4 | . 4 . Potential Cave-ins . | . . . Cave-ins Triggered . | . . . Exploration Rate (%) 33 | 3 96 2 Regions Visited 2 Branch Regions 1 Pre-discovered Areas . | . . . Known Exits Taken 1 | . 1 . Unknown Exits Taken 1 | 1 . . Scrap Searched . | . . . Spaces Dug . | . . . Terrain Destroyed 27 | . 27 . Melee . | . . . Projectile . | . . . AOE 27 | . 27 . Terrain Rammed . | . . . Walls Destroyed . | . . . Machines Disabled . | . . . Actions | -11 -10 -10 --------- Run | Yrd Mat Sub Total 1045 | 65 939 41 Wait 28 | . 25 3 Move 880 | 51 791 38 Hop 4 | . 4 . Pick Up 20 | 8 12 . Fast Attach 1 | . 1 . Attach 12 | 6 6 . Detach 1 | . 1 . Swap 10 | . 10 . Drop 11 | . 11 . Fire 78 | . 78 . Melee . | . . . Ram . | . . . Kick . | . . . Crush . | . . . Escape Stasis . | . . . Rewire . | . . . Trap . | . . . Miscellaneous . | . . . Route ------- -11/Scrapyard -10/Materials (discovered 5 exits: *Mat x3 / [*Min] / *Sub) -10/Subcaves History --------- Turn | Location | Event 10 | -11/Scrapyard | Discovered new exit (range 15) 73 | -11/Scrapyard | Entered Materials 271 | -10/Materials | Discovered new exit (range 17) 310 | -10/Materials | Discovered new exit (range 8) 374 | -10/Materials | Discovered new exit (range 11) 421 | -10/Materials | Discovered new exit (range 18) 427 | -10/Materials | Discovered new exit (range 8) 482 | -10/Materials | Core integrity fell below 50% 520 | -10/Materials | Core integrity fell below 20% 529 | -10/Materials | Lost 5 parts (1p1n3w) 659 | -10/Materials | Identified exit to Materials 688 | -10/Materials | Identified exit to Subcaves 688 | -10/Materials | Entered Subcaves 689 | -10/Subcaves | Approached by a straggling Scientist 707 | -10/Subcaves | Destroyed by VJ-2OE(R) with Subdweller Laser Last Messages --------------- 00593_ R-06 Scavenger suffers critical hit (Burn). 00594_ U-05 Engineer lays Concrete. 00601_ R-06 Scavenger destroyed. 00602_ U-05 Engineer lays Concrete. 00654_ Acquired Signal Interpreter. 00656_ Dropped ECM Suite. 00659_ EXIT=IDENTIFIED: MATERIALS 00675_ Extracted 10 matter. 00678_ Z V9,RB8S4THA:FG|SL N IC 00688_ EXIT=IDENTIFIED: SUBCAVES LOCATION=SUBCAVES AMBIENT_HEAT=-10 GOAL=ESCAPE 00689_ 52-DNO(c): "Thank the algorithms! I was beginning to lose hope I'd never make it past all the Subs lurking out here." 00689_ F6-0G1(u) builds Twisted Machinery. 00692_ 52-DNO(c): "Hey, let me tag along and I can get us both out of this nasty situation. At least I think I can... The group I got separated from was talking about a shortcut back to the UFD." 00704_ System corrupted: Component data lost. Map ----- +----------------------------------------------------+ | ?????????????????????????????????????????????????? | | ?????????????????????????????????????????????????? | | ?????????????????????????????????????????????????? | | ?????????????????????????????????????????????????? | | ?????????????????????????????????????????????????? | | ?????????????????????????????????????????????????? | | ?????????????????????????????????????????????????? | | ?????????????????????????????????????????????????? | | ?????????????????????????????????????????????????? | | ?????????????????????????????????????????????????? | | ?????????????????????????????????????????????????? | | ?????????????????????????????????????????????????? | | ???????????????????????????????????? ???????????? | | ??????????????????????????????????? ????????????? | | ??????????????????????????????????# ?????????????? | | ??????????????????????????????#### ??????????????? | | ????????????????????????????## ???????????????? | | ???????????????????????????## ????????????????? | | ??????????????????????????## ?????????????????? | | ?????????????????????????## ###???????????????? | | ?????????????????????????? # ##??????????????? | | ??????????????????????????# #??????????????? | | ????????"????????????????## # # ##???? #???????? | | ??????? " ??????????????# ### #?? #????????? | | ????????# "???########## ## ## #?????????? | | ?????????#" "" ## # ## # @c R #?????????? | | ??????????# "" R #?????????? | | ??????????#" #### # #?????????? | | ??????????#"### # ## # #??##### ##?????????? | | ????????????????######### #???????####??????????? | | ????????????????????????####?????????????????????? | | ?????????????????????????????????????????????????? | | ?????????????????????????????????????????????????? | | ?????????????????????????????????????????????????? | | ?????????????????????????????????????????????????? | | ?????????????????????????????????????????????????? | | ?????????????????????????????????????????????????? | | ?????????????????????????????????????????????????? | | ?????????????????????????????????????????????????? | | ?????????????????????????????????????????????????? | | ?????????????????????????????????????????????????? | | ?????????????????????????????????????????????????? | | ?????????????????????????????????????????????????? | | ?????????????????????????????????????????????????? | | ?????????????????????????????????????????????????? | | ?????????????????????????????????????????????????? | | ?????????????????????????????????????????????????? | | ?????????????????????????????????????????????????? | | ?????????????????????????????????????????????????? | | ?????????????????????????????????????????????????? | +----------------------------------------------------+ Best States ------------- Heat Dissipation 25 Energy Generation 10 Energy Capacity 250 Matter Stores 300 Matter Capacity 300 Sight Range 18 Terrain Scan Density 10 ECM Strength 1 Evasion (%) 62 Item Schematics ----------------- None Robot Schematics ------------------ None Fabricated ------------ Nothing Repaired ---------- Nothing Alien Tech Used ----------------- None Achievements -------------- None Challenges ------------ None Game ------ Seed IonMetafiberPendant Manual? 0 Play Time 00:11:29 Cumulative 51.3 hours Start 2025.06.09 @ 15:05:58 End 2025.06.09 @ 15:17:15 Sessions 1 Manual Loads 0 Difficulty Rogue Special Mode None Game No. 105 Rogue 105 Adventurer 0 Explorer 0 Win Type - Total 0 Types 0/0/0/0/0/0/0/0/0/0 Lore% 15 Gallery% 28 Achievement% 24 Wizard Run 0 Options --------- Layout 0 ASCII 0 Keyboard 0 Movement Mouse Keybinds 0 Fullscreen 1 Font 24/Smallcaps Map View 76x50 Zoom Use 0% Tactical HUD 1 Map Filters NONE Filters NONE Steam 1 RUN: 560feec4-1ae2-458d-a0c2-519a89531da1